bitfinex/quotes_SOLUSD_20241024
["timestamp","ask_amount","ask_price","bid_price","bid_amount"]
[1729740031212,25.7266,174.63,174.6,18.4008947]
[1729740031413,5.7266,174.63,174.6,18.4008947]
[1729740031613,28.0131,174.65,174.62,18.4008947]
[1729740032303,23.902374,174.64,174.62,18.4008947]
[1729740032709,29.628674,174.63,174.62,18.4008947]
[1729740033192,22.2871,174.65,174.62,18.4008947]
[1729740033388,0.12549,174.64,174.55,16.1177]
[1729740033595,5.7257,174.66,174.63,18.4008947]
[1729740033811,5.7257,174.66,174.64,18.4008947]
[1729740034013,5.7257,174.66,174.63,18.4008947]
[1729740034603,25.725,174.67,174.63,18.4008947]
[1729740035519,24.027864,174.66,174.63,18.4008947]
[1729740036922,29.753364,174.66,174.63,18.4008947]
[1729740037894,24.027864,174.66,174.63,18.4008947]
[1729740038096,29.753264,174.66,174.63,18.4008947]
[1729740038496,29.753264,174.66,174.62,18.4008947]
[1729740038898,29.753264,174.66,174.63,18.4008947]
[1729740039099,29.753264,174.66,174.64,18.4008947]
[1729740039715,29.753264,174.66,174.63,18.4008947]
[1729740040021,29.753264,174.66,174.62,18.4008947]
[1729740041104,18.4008947,174.65,174.55,16.2177]
[1729740041321,24.027864,174.64,174.6,18.4008947]
[1729740041621,24.027864,174.64,174.61,18.4008947]
[1729740041822,0.25098,174.64,174.62,18.4008947]
[1729740042204,23.776884,174.63,174.62,18.4008947]
[1729740042404,23.902374,174.63,174.62,18.4008947]
[1729740043305,23.902374,174.63,174.6,18.4008947]
[1729740043630,42.4287587,174.62,174.57,18.4008947]
[1729740044117,24.027864,174.62,174.58,18.4008947]
[1729740044826,5.727,174.61,174.59,18.4008947]
[1729740045026,23.776884,174.6,174.58,18.4008947]
[1729740045517,23.776884,174.6,174.59,18.4008947]
[1729740045732,23.902374,174.6,174.59,18.4008947]
[1729740052038,23.902374,174.6,174.58,18.4008947]
[1729740052342,0.12549,174.59,174.55,18.4008947]
[1729740052718,0.12549,174.59,174.56,18.4008947]
[1729740053237,0.12549,174.59,174.57,18.4008947]
[1729740056141,0.12549,174.59,174.5,89.8212788]
[1729740056142,0.12549,174.59,174.58,18.4008947]
[1729740056637,23.776884,174.6,174.58,18.4008947]
[1729740056956,5.7254,174.66,174.59,18.4008947]
[1729740057125,5.7254,174.66,174.64,18.4008947]
[1729740057715,5.7254,174.66,174.65,18.4008947]
[1729740058244,5.725,174.67,174.65,18.4008947]
[1729740058426,24.027864,174.66,174.65,18.4008947]
[1729740058629,24.027864,174.66,174.64,18.4008947]
[1729740059420,5.725,174.67,174.64,18.4008947]
[1729740060326,5.725,174.67,174.65,18.4008947]
[1729740060925,23.902374,174.66,174.64,18.4008947]
[1729740063951,23.902374,174.66,174.57,0.1]
[1729740063952,23.902374,174.66,174.65,18.4008947]
[1729740064949,23.776884,174.66,174.65,18.4008947]
[1729740065245,22.16407635,174.73,174.65,18.4008947]
[1729740065459,22.16407635,174.73,174.7,18.4008947]
[1729740065946,6.026,174.75,174.72,18.4008947]
[1729740066145,11.7484,174.75,174.72,18.4008947]
[1729740066340,5.866866,174.76,174.73,18.4008947]
[1729740067149,0.144666,174.76,174.73,18.4008947]
[1729740067349,0.144666,174.76,174.75,18.4008947]
[1729740068250,24.2676607,174.76,174.64,15.5773]
[1729740068553,18.4008947,174.72,174.64,15.5773]
[1729740068934,24.027864,174.71,174.67,18.4008947]
[1729740069145,24.027864,174.71,174.64,15.5773]
[1729740069146,0.25098,174.71,174.69,18.4008947]
[1729740069346,23.776884,174.72,174.7,18.4008947]
[1729740069551,23.776884,174.72,174.71,18.4008947]
[1729740071339,23.776884,174.72,174.69,18.4008947]
[1729740071538,24.027864,174.71,174.67,18.4008947]
[1729740071747,24.027864,174.71,174.64,15.5773]
[1729740071967,24.027864,174.71,174.67,18.4008947]
[1729740072634,29.751664,174.71,174.67,18.4008947]
[1729740076565,23.902374,174.69,174.65,18.4008947]
[1729740076859,23.902374,174.69,174.66,18.4008947]
[1729740077050,0.12549,174.69,174.66,18.4008947]
[1729740078660,0.12549,174.7,174.68,18.4008947]
[1729740078867,23.902374,174.71,174.69,18.4008947]
[1729740078868,23.776884,174.71,174.69,18.4008947]
[1729740083159,23.776884,174.71,174.68,18.4008947]
[1729740091076,0.25098,174.7,174.67,18.4008947]
[1729740091261,23.776884,174.71,174.69,18.4008947]
[1729740093864,23.776884,174.71,174.7,18.4008947]
[1729740094369,22.868766,174.76,174.7,18.4008947]
[1729740094370,0.144666,174.76,174.7,18.4008947]
[1729740094671,0.144666,174.76,174.75,18.4008947]
[1729740099378,0.144666,174.76,174.7,73.6035788]
[1729740099578,0.144666,174.76,174.75,18.4008947]
[1729740109378,0.144666,174.76,174.66,16.1575]
[1729740109379,23.902374,174.75,174.66,16.1575]
[1729740109581,23.776884,174.73,174.69,18.4008947]
[1729740110476,23.776884,174.71,174.62,15.8718]
[1729740110680,23.776884,174.71,174.69,18.4008947]
[1729740110992,0.12549,174.74,174.7,18.4008947]
[1729740111284,23.776884,174.75,174.73,18.4008947]
[1729740111489,23.776884,174.75,174.74,18.4008947]
[1729740111991,0.144666,174.76,174.74,18.4008947]
[1729740112378,0.144666,174.76,174.73,18.4008947]
[1729740113291,0.144666,174.76,174.74,18.4008947]
[1729740115600,0.144666,174.76,174.75,18.4008947]
[1729740117006,0.144666,174.76,174.74,18.4008947]
[1729740119392,23.776884,174.75,174.72,18.4008947]
[1729740122186,23.776884,174.75,174.73,18.4008947]
[1729740122383,23.92155,174.76,174.73,18.4008947]
[1729740122585,0.144666,174.76,174.74,18.4008947]
[1729740126289,0.144666,174.76,174.73,18.4008947]
[1729740128290,0.144666,174.76,174.74,18.4008947]
[1729740128985,5.866766,174.76,174.69,16.2626]
[1729740129182,23.776884,174.75,174.72,18.4008947]
[1729740130613,23.776884,174.75,174.73,18.4008947]
[1729740131390,23.776884,174.75,174.74,18.4008947]
[1729740132086,0.144666,174.76,174.74,18.4008947]
[1729740132306,0.144666,174.76,174.75,18.4008947]
[1729740136017,0.144666,174.76,174.71,20.2]
[1729740136316,0.144666,174.76,174.75,18.4008947]
[1729740141097,0.62219,174.8,174.77,0.2]
[1729740141291,0.62219,174.8,174.79,18.4008947]
[1729740142218,0.62219,174.8,174.79,38.6008947]
[1729740142428,0.62219,174.8,174.79,112.2044735]
[1729740143293,0.62219,174.8,174.79,38.5008947]
[1729740143623,0.62219,174.8,174.79,18.5008947]
[1729740144021,0.62219,174.8,174.79,18.6008947]
[1729740145498,0.62219,174.8,174.79,0.2]
[1729740145700,0.62219,174.8,174.79,18.5008947]
[1729740145909,0.62219,174.8,174.79,18.4008947]
[1729740146342,0.62219,174.8,174.76,0.2]
[1729740146509,0.62219,174.8,174.76,0.1]
[1729740146710,0.62219,174.8,174.79,18.4008947]
[1729740148619,0.62219,174.8,174.75,8.83651078]
[1729740148815,0.62219,174.8,174.79,18.4008947]
[1729740154629,0.62219,174.8,174.78,18.4008947]
[1729740154837,0.62219,174.8,174.77,18.4008947]
[1729740156139,0.62219,174.8,174.72,8.83651078]
[1729740156140,23.776884,174.79,174.75,18.4008947]
[1729740156313,23.776884,174.79,174.72,8.73651078]
[1729740156649,42.1777787,174.79,174.74,18.4008947]
[1729740157137,0.62219,174.8,174.78,18.4008947]
[1729740157322,0.62219,174.8,174.79,18.4008947]
[1729740157642,0.62219,174.8,174.75,8.83651078]
[1729740157937,0.62219,174.8,174.79,18.4008947]
[1729740159322,0.54819,174.8,174.79,18.4008947]
[1729740162245,0.54819,174.8,174.79,18.5008947]
[1729740162540,0.54819,174.8,174.79,18.6008947]
[1729740162727,0.54819,174.8,174.79,18.5008947]
[1729740163548,0.54819,174.8,174.79,18.6008947]
[1729740164626,0.54819,174.8,174.79,18.5008947]
[1729740166039,0.54819,174.8,174.79,18.6008947]
[1729740166836,0.54819,174.8,174.79,18.5008947]
[1729740168245,0.54819,174.8,174.79,18.6008947]
[1729740172623,0.54819,174.8,174.79,112.2044735]
[1729740172849,0.54819,174.8,174.79,120.94098428]
[1729740174455,0.54819,174.8,174.79,27.33740548]
[1729740174664,0.54819,174.8,174.79,8.93651078]
[1729740174835,0.54819,174.8,174.79,27.33740548]
[1729740178157,0.54819,174.8,174.79,18.4008947]
[1729740183461,22.78069,174.8,174.74,5.96882923]
[1729740183758,22.78069,174.8,174.72,0.1]
[1729740184064,22.78069,174.8,174.76,18.4008947]
[1729740184459,23.776884,174.79,174.76,18.4008947]
[1729740184654,23.776884,174.79,174.77,18.4008947]
[1729740188655,23.776884,174.79,174.78,18.4008947]
[1729740190161,22.78069,174.8,174.78,18.4008947]
[1729740190365,0.54819,174.8,174.79,18.4008947]
[1729740192158,0.54819,174.8,174.79,18.5008947]
[1729740192466,0.54819,174.8,174.79,18.4008947]
[1729740195245,0.54819,174.8,174.79,92.1044735]
[1729740195569,0.54819,174.8,174.79,18.5008947]
[1729740196557,0.54819,174.8,174.79,92.2044735]
[1729740196864,0.54819,174.8,174.79,92.1044735]
[1729740197076,0.54819,174.8,174.79,92.2044735]
[1729740198056,0.54819,174.8,174.79,92.0044735]
[1729740198365,0.54819,174.8,174.79,18.6008947]
[1729740202277,0.54819,174.8,174.79,18.5008947]
[1729740202779,0.54819,174.8,174.79,18.6008947]
[1729740203162,0.54819,174.8,174.79,18.5008947]
[1729740203473,0.54819,174.8,174.79,18.4008947]
[1729740203683,0.54819,174.8,174.76,7.38595523]
[1729740203859,0.54819,174.8,174.79,18.4008947]
[1729740204455,0.54819,174.8,174.76,7.38595523]
[1729740204661,0.54819,174.8,174.79,18.4008947]
[1729740207381,0.54819,174.8,174.76,7.38595523]
[1729740207557,0.54819,174.8,174.79,18.4008947]
[1729740217501,0.54819,174.8,174.79,55.2026841]
[1729740217668,21.7527,174.87,174.8,0.2]
[1729740217989,21.7527,174.87,174.85,18.4008947]
[1729740218774,21.7527,174.87,174.8,0.1]
[1729740218994,21.7527,174.87,174.84,18.4008947]
[1729740219300,23.776884,174.86,174.79,30.0]
[1729740219476,23.776884,174.86,174.83,18.4008947]
[1729740222000,23.776884,174.86,174.82,18.4008947]
[1729740222368,40.1535947,174.87,174.77,30.0]
[1729740222369,0.12549,174.83,174.77,30.0]
[1729740222574,0.12549,174.83,174.8,18.4008947]
[1729740222786,0.12549,174.83,174.81,18.4008947]
[1729740224485,0.12549,174.83,174.8,18.4008947]
[1729740224697,0.12549,174.83,174.75,7.38595523]
[1729740224884,0.12549,174.83,174.79,18.4008947]
[1729740226102,0.12549,174.83,174.8,18.4008947]
[1729740226785,18.5263847,174.83,174.75,7.38595523]
[1729740226995,23.776884,174.82,174.78,18.4008947]
[1729740228395,0.12549,174.81,174.75,7.38595523]
[1729740228581,0.12549,174.81,174.78,18.4008947]
[1729740228989,23.776884,174.8,174.72,5.97182742]
[1729740229195,42.1777787,174.78,174.74,18.4008947]
[1729740229490,23.776884,174.76,174.73,18.4008947]
[1729740229798,23.776884,174.76,174.74,18.4008947]
[1729740231098,23.776884,174.76,174.75,18.4008947]
[1729740233398,23.902374,174.8,174.75,18.4008947]
[1729740233585,23.902374,174.8,174.77,18.4008947]
[1729740237576,42.3032687,174.8,174.75,18.4008947]
[1729740238875,0.12549,174.77,174.74,18.4008947]
[1729740239082,0.12549,174.77,174.73,18.4008947]
[1729740239083,23.776884,174.76,174.73,18.4008947]
[1729740240497,23.902374,174.77,174.73,18.4008947]
[1729740242080,23.902374,174.77,174.67,5.96477405]
[1729740242081,42.3032687,174.75,174.67,5.96477405]
[1729740242300,42.3032687,174.75,174.7,18.4008947]
[1729740242711,29.624774,174.75,174.71,18.4008947]
[1729740244690,0.12549,174.74,174.71,18.4008947]
[1729740244893,0.12549,174.72,174.69,18.4008947]
[1729740246413,0.25098,174.72,174.69,18.4008947]
[1729740247209,5.97458,174.72,174.69,18.4008947]
[1729740247509,0.12549,174.7,174.68,18.4008947]
[1729740249612,0.12549,174.7,174.62,5.97370066]
[1729740249911,0.12549,174.68,174.66,18.4008947]
[1729740250218,0.12549,174.68,174.65,18.4008947]
[1729740250419,0.12549,174.68,174.66,18.4008947]
[1729740252921,0.12549,174.68,174.67,18.4008947]
[1729740253906,23.776884,174.69,174.67,18.4008947]
[1729740254105,23.902374,174.69,174.68,18.4008947]
[1729740255396,20.0,174.73,174.68,18.4008947]
[1729740255704,20.0,174.73,174.7,18.4008947]
[1729740256635,23.902374,174.72,174.7,18.4008947]
[1729740258199,0.12549,174.71,174.69,18.4008947]
[1729740258909,0.12549,174.71,174.68,18.4008947]
[1729740259803,0.12549,174.71,174.69,18.4008947]
[1729740262123,6.5734,174.74,174.7,18.4008947]
[1729740262302,12.2961,174.74,174.72,18.4008947]
[1729740263405,24.027864,174.73,174.72,18.4008947]
[1729740264527,24.027864,174.73,174.71,18.4008947]
[1729740268413,24.027864,174.73,174.7,18.4008947]
[1729740270911,24.027864,174.73,174.62,7.38595523]
[1729740271116,29.750964,174.73,174.62,7.38595523]
[1729740271316,29.750964,174.73,174.7,18.4008947]
[1729740274436,24.027864,174.73,174.71,18.4008947]
[1729740278529,24.027864,174.73,174.7,18.4008947]
[1729740280654,24.027864,174.73,174.69,18.4008947]
[1729740281735,29.751064,174.73,174.69,18.4008947]
[1729740284940,29.751064,174.73,174.62,13.35081783]
[1729740285246,29.751064,174.73,174.7,18.4008947]
[1729740285546,29.751064,174.73,174.69,18.4008947]
[1729740286938,48.1519587,174.73,174.68,18.4008947]
[1729740287524,48.1519587,174.73,174.67,18.4008947]
[1729740288132,48.1519587,174.73,174.68,18.4008947]
[1729740288330,29.751064,174.73,174.69,18.4008947]
[1729740290549,48.1519587,174.73,174.68,18.4008947]
[1729740290938,29.751064,174.73,174.69,18.4008947]
[1729740294337,6.5734,174.74,174.72,18.4008947]
[1729740294661,6.5734,174.74,174.73,18.4008947]
[1729740294841,6.5734,174.74,174.72,18.4008947]
[1729740295042,12.2963,174.74,174.64,16.5807]
[1729740295251,12.2963,174.74,174.72,18.4008947]
[1729740295644,24.027864,174.73,174.72,18.4008947]
[1729740296943,24.027864,174.73,174.71,18.4008947]
[1729740300651,24.027864,174.73,174.72,18.4008947]
[1729740300853,24.027864,174.73,174.71,18.4008947]
[1729740301060,24.027864,174.71,174.64,16.5807]
[1729740301259,24.027864,174.71,174.68,18.4008947]
[1729740307057,24.027864,174.71,174.69,18.4008947]
[1729740314779,29.751664,174.71,174.68,18.4008947]
[1729740325861,29.751664,174.71,174.69,18.4008947]
[1729740325862,24.027864,174.71,174.69,18.4008947]
[1729740326554,24.027864,174.71,174.6,79.57670313]
[1729740326555,24.027864,174.71,174.68,18.4008947]
[1729740334563,24.027864,174.71,174.67,18.4008947]
[1729740338091,24.027864,174.71,174.68,18.4008947]
[1729740339298,24.027864,174.71,174.69,18.4008947]
[1729740339593,29.751564,174.71,174.69,18.4008947]
[1729740340587,29.751564,174.71,174.6,79.57670313]
[1729740340588,5.7227,174.75,174.7,18.4008947]
[1729740340891,5.7227,174.75,174.73,18.4008947]
[1729740341786,43.902374,174.76,174.74,18.4008947]
[1729740342087,28.19355372,174.75,174.74,18.4008947]
[1729740342283,28.31894579,174.75,174.74,18.4008947]
[1729740344183,34.04134579,174.75,174.74,18.4008947]
[1729740344366,29.750264,174.75,174.74,18.4008947]
[1729740344573,23.902374,174.74,174.72,18.4008947]
[1729740348598,23.902374,174.74,174.73,18.4008947]
[1729740349478,23.902374,174.74,174.72,18.4008947]
[1729740351094,23.902374,174.74,174.71,18.4008947]
[1729740355083,29.625274,174.74,174.71,18.4008947]
[1729740355480,0.12549,174.73,174.7,18.4008947]
[1729740355994,5.84859,174.73,174.7,18.4008947]
[1729740356195,23.902374,174.72,174.7,18.4008947]
[1729740361009,23.902374,174.72,174.65,15.2382]
[1729740361010,23.902374,174.72,174.71,18.4008947]
[1729740366294,5.7221,174.76,174.71,18.4008947]
[1729740366507,12.6540537,174.78,174.75,18.4008947]
[1729740367192,12.6540537,174.78,174.74,18.4008947]
[1729740367806,23.902374,174.76,174.74,18.4008947]
[1729740367989,23.902374,174.76,174.73,18.4008947]
[1729740369315,23.902374,174.76,174.74,18.4008947]
[1729740370010,23.902374,174.76,174.73,18.4008947]
[1729740376318,23.902374,174.76,174.72,18.4008947]
[1729740376516,42.3032687,174.76,174.71,18.4008947]
[1729740377618,42.3032687,174.73,174.65,15.2382]
[1729740377819,42.3032687,174.71,174.66,18.4008947]
[1729740378217,42.3032687,174.71,174.67,18.4008947]
[1729740378218,23.902374,174.71,174.67,18.4008947]
[1729740379326,29.626174,174.71,174.67,18.4008947]
[1729740380124,29.626174,174.71,174.61,15.9747]
[1729740380125,42.3032687,174.69,174.61,15.9747]
[1729740380317,42.3032687,174.69,174.65,18.4008947]
[1729740380318,23.902374,174.69,174.65,18.4008947]
[1729740380527,23.902374,174.69,174.66,18.4008947]
[1729740381622,23.902374,174.69,174.67,18.4008947]
[1729740382330,23.902374,174.69,174.61,15.9747]
[1729740382622,23.902374,174.69,174.67,18.4008947]
[1729740383015,0.12549,174.69,174.67,18.4008947]
[1729740390008,0.12549,174.69,174.66,18.4008947]
[1729740391513,42.3032687,174.68,174.63,18.4008947]
[1729740391712,0.12549,174.67,174.63,18.4008947]
[1729740392126,0.12549,174.67,174.64,18.4008947]
[1729740395848,0.12549,174.67,174.63,18.4008947]
[1729740398645,0.12549,174.67,174.64,18.4008947]
[1729740409256,0.12549,174.67,174.63,18.4008947]
[1729740410540,0.12549,174.67,174.64,18.4008947]
[1729740411050,0.12549,174.67,174.65,18.4008947]
[1729740411636,0.12549,174.67,174.64,18.4008947]
[1729740414162,18.5263847,174.65,174.6,18.4008947]
[1729740414339,23.776884,174.64,174.6,18.4008947]
[1729740414847,23.776884,174.64,174.61,18.4008947]
[1729740415055,23.902374,174.65,174.61,18.4008947]
[1729740416540,23.902374,174.65,174.58,7.09893689]
[1729740416737,23.902374,174.65,174.61,18.4008947]
[1729740417045,23.902374,174.65,174.6,18.4008947]
[1729740417639,23.902374,174.65,174.61,18.4008947]
[1729740420152,0.12549,174.64,174.57,15.8499]
[1729740420353,0.12549,174.64,174.61,18.4008947]
[1729740420861,0.12549,174.64,174.57,15.8499]
[1729740421059,23.902374,174.63,174.54,7.09893689]
[1729740421266,23.902374,174.63,174.59,18.4008947]
[1729740421435,23.902374,174.63,174.54,7.09893689]
[1729740421634,23.902374,174.63,174.59,18.4008947]
[1729740422562,0.12549,174.62,174.59,18.4008947]
[1729740423860,0.12549,174.62,174.6,18.4008947]
[1729740424743,23.902374,174.63,174.61,18.4008947]
[1729740424951,23.902374,174.63,174.62,18.4008947]
[1729740426245,23.902374,174.63,174.54,7.09893689]
[1729740426451,23.902374,174.63,174.62,18.4008947]
[1729740427740,15.7197,174.68,174.62,18.4008947]
[1729740427940,6.3838,174.69,174.67,18.4008947]
[1729740428146,27.8268,174.73,174.68,18.4008947]
[1729740428357,37.02724735,174.73,174.69,9.20044735]
[1729740428568,18.5008947,174.7,174.58,16.3267]
[1729740428755,18.4008947,174.67,174.62,18.4008947]
[1729740429139,0.1,174.7,174.58,16.3267]
[1729740429140,24.027864,174.66,174.63,18.4008947]
[1729740429564,24.027864,174.67,174.63,18.4008947]
[1729740429964,24.027864,174.67,174.64,18.4008947]
[1729740432153,23.902374,174.67,174.65,18.4008947]
[1729740432474,23.902374,174.67,174.66,18.4008947]
[1729740432767,5.7242,174.7,174.66,18.4008947]
[1729740432971,5.7242,174.7,174.67,18.4008947]
[1729740433167,24.1250947,174.7,174.65,18.4008947]
[1729740433475,18.4008947,174.68,174.63,18.4008947]
[1729740433963,24.027864,174.67,174.63,18.4008947]
[1729740434542,42.4287587,174.67,174.62,18.4008947]
[1729740434740,23.902374,174.67,174.62,18.4008947]
[1729740434946,23.902374,174.67,174.66,18.4008947]
[1729740435542,23.902374,174.67,174.65,18.4008947]
[1729740435771,0.12549,174.67,174.65,18.4008947]
[1729740436067,0.12549,174.67,174.64,18.4008947]
[1729740437167,0.12549,174.67,174.58,16.3267]
[1729740437375,0.12549,174.65,174.58,16.3267]
[1729740437549,0.12549,174.65,174.61,18.4008947]
[1729740438266,23.776884,174.64,174.54,16.0538]
[1729740438571,23.776884,174.62,174.58,18.4008947]
[1729740438875,23.902374,174.63,174.58,18.4008947]
[1729740439170,23.902374,174.63,174.59,18.4008947]
[1729740442650,0.12549,174.62,174.54,16.0538]
[1729740442980,0.12549,174.62,174.57,18.4008947]
[1729740443153,0.12549,174.62,174.58,18.4008947]
[1729740443664,0.12549,174.62,174.54,16.0538]
[1729740444055,0.12549,174.62,174.58,18.4008947]
[1729740444452,20.12549,174.62,174.58,18.4008947]
[1729740444659,23.902374,174.61,174.58,18.4008947]
[1729740445561,23.902374,174.61,174.57,18.4008947]
[1729740446359,29.629474,174.61,174.52,7.09893689]
[1729740446659,23.902374,174.61,174.57,18.4008947]
[1729740447679,0.12549,174.6,174.52,7.09893689]
[1729740447851,23.902374,174.59,174.5,89.0731788]
[1729740448058,23.902374,174.59,174.55,18.4008947]
[1729740448258,23.902374,174.59,174.5,89.0731788]
[1729740448448,23.902374,174.59,174.55,18.4008947]
[1729740449554,23.902374,174.59,174.5,15.4696]
[1729740449760,23.902374,174.59,174.55,18.4008947]
[1729740453072,23.902374,174.59,174.56,18.4008947]
[1729740456084,23.902374,174.59,174.46,5.96989959]
[1729740456085,62.4287587,174.57,174.46,5.96989959]
[1729740456285,62.4287587,174.57,174.44,15.4696]
[1729740456286,24.027864,174.53,174.49,18.4008947]
[1729740456576,24.027864,174.53,174.44,15.4696]
[1729740456758,24.027864,174.53,174.5,18.4008947]
[1729740456959,0.12549,174.53,174.5,18.4008947]
[1729740457163,0.12549,174.53,174.51,18.4008947]
[1729740457358,0.12549,174.53,174.52,18.4008947]
[1729740457560,0.12549,174.53,174.52,9.20044735]
[1729740457761,0.12549,174.53,174.44,15.4696]
[1729740458264,0.12549,174.53,174.52,18.4008947]
[1729740458466,0.12549,174.53,174.44,15.4696]
[1729740458790,0.12549,174.53,174.52,18.4008947]
[1729740459476,0.12549,174.53,174.5,18.4008947]
[1729740460275,0.12549,174.53,174.49,18.4008947]
[1729740460276,5.98068,174.53,174.49,18.4008947]
[1729740460480,5.98068,174.53,174.44,15.4696]
[1729740460481,0.12549,174.51,174.48,18.4008947]
[1729740464091,0.12549,174.51,174.49,18.4008947]
[1729740464683,0.12549,174.51,174.5,18.4008947]
[1729740466685,38.4008947,174.57,174.5,18.4008947]
[1729740466887,5.7287,174.56,174.52,18.4008947]
[1729740467183,20.0,174.52,174.42,5.96805769]
[1729740467384,20.0,174.55,174.5,18.4008947]
[1729740467688,20.0,174.55,174.51,18.4008947]
[1729740467880,24.027864,174.54,174.51,18.4008947]
[1729740468870,24.027864,174.54,174.52,18.4008947]
[1729740470897,24.027864,174.54,174.51,18.4008947]
[1729740473184,23.902374,174.54,174.51,18.4008947]
[1729740473383,23.902374,174.54,174.45,15.9249]
[1729740473384,23.902374,174.54,174.53,18.4008947]
[1729740473688,21.7669,174.58,174.53,18.4008947]
[1729740473987,5.7277,174.59,174.56,18.4008947]
[1729740474770,18.4008947,174.61,174.56,18.4008947]
[1729740474975,5.7273,174.6,174.56,18.4008947]
[1729740475482,24.027864,174.59,174.56,18.4008947]
[1729740476288,29.755764,174.59,174.55,18.4008947]
[1729740476593,29.755764,174.59,174.45,15.9249]
[1729740476594,48.1566587,174.59,174.54,18.4008947]
[1729740478089,18.4008947,174.58,174.54,18.4008947]
[1729740478282,23.902374,174.57,174.54,18.4008947]
[1729740478490,29.630674,174.57,174.53,18.4008947]
[1729740478679,18.5263847,174.56,174.51,18.4008947]
[1729740478883,23.902374,174.55,174.51,18.4008947]
[1729740479276,23.902374,174.55,174.5,18.4008947]
[1729740479468,18.4008947,174.52,174.42,21.13243335]
[1729740479673,23.776884,174.5,174.45,18.4008947]
[1729740480177,23.776884,174.5,174.46,18.4008947]
[1729740482592,23.902374,174.51,174.47,18.4008947]
[1729740483778,23.902374,174.51,174.48,18.4008947]
[1729740484287,23.902374,174.51,174.47,18.4008947]
[1729740485494,23.902374,174.51,174.48,18.4008947]
[1729740485791,18.5008947,174.58,174.5,18.4008947]
[1729740486089,18.4008947,174.58,174.53,18.4008947]
[1729740487298,24.027864,174.56,174.53,18.4008947]
[1729740487798,23.902374,174.56,174.54,18.4008947]
[1729740487977,23.902374,174.56,174.53,18.4008947]
[1729740488184,0.12549,174.56,174.54,18.4008947]
[1729740489404,0.12549,174.56,174.53,18.4008947]
[1729740490687,0.12549,174.56,174.54,18.4008947]
[1729740494594,23.902374,174.55,174.54,18.4008947]
[1729740498093,23.902374,174.55,174.53,18.4008947]
[1729740498292,0.12549,174.55,174.53,18.4008947]
[1729740498514,20.0,174.53,174.42,15.1668]
[1729740498714,0.12549,174.51,174.48,18.4008947]
[1729740498900,0.12549,174.51,174.47,18.4008947]
[1729740499492,0.12549,174.51,174.46,18.4008947]
[1729740499914,23.776884,174.5,174.46,18.4008947]
[1729740501522,23.902374,174.51,174.47,18.4008947]
[1729740502805,23.902374,174.51,174.49,18.4008947]
[1729740503509,23.776884,174.51,174.5,18.4008947]
[1729740506625,23.028,174.59,174.5,18.4008947]
[1729740506920,18.4008947,174.58,174.53,18.4008947]
[1729740507303,18.4008947,174.55,174.5,18.4008947]
[1729740507707,18.4008947,174.57,174.52,18.4008947]
[1729740507914,23.902374,174.53,174.49,18.4008947]
[1729740509018,23.842374,174.53,174.5,18.4008947]
[1729740509332,20.06549,174.53,174.51,18.4008947]
[1729740509528,23.776884,174.52,174.51,18.4008947]
[1729740510122,0.12549,174.51,174.43,15.1432]
[1729740510324,23.902374,174.49,174.45,18.4008947]
[1729740510529,23.776884,174.49,174.46,18.4008947]
[1729740510926,23.902374,174.5,174.46,18.4008947]
[1729740511231,0.12549,174.49,174.46,18.4008947]
[1729740512431,20.0,174.54,174.48,18.4008947]
[1729740512600,20.0,174.54,174.51,18.4008947]
[1729740512804,20.0,174.54,174.5,18.4008947]
[1729740513525,25.7295,174.54,174.5,18.4008947]
[1729740513719,23.902374,174.53,174.5,18.4008947]
[1729740514434,23.902374,174.53,174.51,18.4008947]
[1729740514746,20.9726,174.58,174.52,18.4008947]
[1729740514902,20.9726,174.58,174.55,18.4008947]
[1729740516329,6.1921,174.61,174.57,18.4008947]
[1729740516941,5.7273,174.6,174.57,18.4008947]
[1729740517226,6.1921,174.61,174.57,18.4008947]
[1729740517426,11.9191,174.61,174.58,18.4008947]
[1729740517607,5.7266,174.63,174.6,18.4008947]
[1729740517809,5.7266,174.63,174.59,18.4008947]
[1729740518332,6.1921,174.64,174.6,18.4008947]
[1729740518530,11.9181,174.64,174.6,18.4008947]
[1729740518733,30.3189947,174.64,174.59,18.4008947]
[1729740518933,24.027864,174.63,174.59,18.4008947]
[1729740519307,23.902374,174.59,174.54,9.20044735]